[Event "Titled Tuesday Blitz December 06 Early 2022"]
[White "Tarnowska, Aleksandra"]
[Black "Kyaw Lay Htaik"]
[WhiteFideId "1180967"]
[BlackFideId "13002007"]
[WhiteElo "1776"]
[BlackElo "2261"]
[Result "0-1"]
[Round "03"]
[TimeControl "180+1"]
[Date "2022.12.07"]
[WhiteClock "0:00:11"]
[BlackClock "0:00:53"]

1. e4 {[%clk 0:03:00]}  c5 {[%clk 0:02:59]} 2. Nf3 {[%clk 0:03:00]}  Nc6 {[%clk 0:03:00]} 3. Bb5 {[%clk 0:03:00]}  g6 {[%clk 0:02:59]} 4. O-O {[%clk 0:03:00]}  Bg7 {[%clk 0:02:59]} 5. c3 {[%clk 0:02:52]}  Nh6 {[%clk 0:02:58]} 6. d4 {[%clk 0:02:37]}  cxd4 {[%clk 0:02:58]} 7. cxd4 {[%clk 0:02:36]}  Qb6 {[%clk 0:02:52]} 8. Bxc6 {[%clk 0:02:17]}  bxc6 {[%clk 0:02:53]} 9. Nc3 {[%clk 0:02:12]}  O-O {[%clk 0:02:47]} 10. Na4 {[%clk 0:01:57]}  Qc7 {[%clk 0:02:40]} 11. h3 {[%clk 0:01:51]}  d6 {[%clk 0:02:38]} 12. Bf4 {[%clk 0:01:48]}  f6 {[%clk 0:02:37]} 13. Qd2 {[%clk 0:01:45]}  Nf7 {[%clk 0:02:37]} 14. Rac1 {[%clk 0:01:43]}  a5 {[%clk 0:02:27]} 15. d5 {[%clk 0:01:34]}  c5 {[%clk 0:02:26]} 16. Rxc5 {[%clk 0:01:27]}  Qd8 {[%clk 0:02:10]} 17. Rc2 {[%clk 0:01:17]}  Bd7 {[%clk 0:02:07]} 18. Nc3 {[%clk 0:01:00]}  a4 {[%clk 0:02:04]} 19. Rfc1 {[%clk 0:00:57]}  Qa5 {[%clk 0:02:00]} 20. Nd4 {[%clk 0:00:55]}  Ne5 {[%clk 0:01:55]} 21. Bxe5 {[%clk 0:00:51]}  fxe5 {[%clk 0:01:55]} 22. Nc6 {[%clk 0:00:46]}  Bxc6 {[%clk 0:01:38]} 23. dxc6 {[%clk 0:00:47]}  Rac8 {[%clk 0:01:38]} 24. Nd5 {[%clk 0:00:46]}  Qa7 {[%clk 0:01:35]} 25. c7 {[%clk 0:00:41]}  Bf6 {[%clk 0:01:32]} 26. Qd3 {[%clk 0:00:19]}  Bg5 {[%clk 0:01:27]} 27. Rf1 {[%clk 0:00:13]}  e6 {[%clk 0:01:27]} 28. Nb4 {[%clk 0:00:04]}  Rxc7 {[%clk 0:01:26]} 29. Qxd6 {[%clk 0:00:05]}  Rxc2 {[%clk 0:01:21]} 30. Nxc2 {[%clk 0:00:06]}  Kf7 {[%clk 0:01:13]} 31. Qxe5 {[%clk 0:00:06]}  Bf6 {[%clk 0:01:12]} 32. Qf4 {[%clk 0:00:05]}  Kg7 {[%clk 0:01:11]} 33. Ne3 {[%clk 0:00:04]}  Bxb2 {[%clk 0:01:09]} 34. Qg4 {[%clk 0:00:05]}  Qf7 {[%clk 0:01:08]} 35. Kh1 {[%clk 0:00:03]}  Bd4 {[%clk 0:01:08]} 36. f3 {[%clk 0:00:03]}  Bxe3 {[%clk 0:01:08]} 37. Qg3 {[%clk 0:00:03]}  Qf6 {[%clk 0:01:05]} 38. Qc7+ {[%clk 0:00:03]}  Rf7 {[%clk 0:01:04]} 39. Qc4 {[%clk 0:00:03]}  Qg5 {[%clk 0:01:02]} 40. Qxa4 {[%clk 0:00:04]}  Bf4 {[%clk 0:01:01]} 41. Qb3 {[%clk 0:00:04]}  Qg3 {[%clk 0:01:00]} 42. Kg1 {[%clk 0:00:04]}  Qh2+ {[%clk 0:00:59]} 43. Kf2 {[%clk 0:00:05]}  Bg3+ {[%clk 0:00:59]} 44. Ke3 {[%clk 0:00:05]}  Qxg2 {[%clk 0:00:57]} 45. Qc3+ {[%clk 0:00:05]}  e5 {[%clk 0:00:56]} 46. Rd1 {[%clk 0:00:03]}  Qf2+ {[%clk 0:00:56]} 47. Kd3 {[%clk 0:00:04]}  Rd7+ {[%clk 0:00:55]} 48. Kc4 {[%clk 0:00:03]}  Rc7+ {[%clk 0:00:53]} 49. Kb3 {[%clk 0:00:03]}  Rxc3+ {[%clk 0:00:53]} 50. Kxc3 {[%clk 0:00:04]}  Qxf3+ {[%clk 0:00:52]} 51. Kc2 {[%clk 0:00:04]}  Qxe4+ {[%clk 0:00:52]} 52. Rd3 {[%clk 0:00:04]}  Qa4+ {[%clk 0:00:52]} 53. Kd2 {[%clk 0:00:04]}  Qxa2+ {[%clk 0:00:51]} 54. Ke3 {[%clk 0:00:04]}  Qa7+ {[%clk 0:00:51]} 55. Ke4 {[%clk 0:00:05]}  Qd4+ {[%clk 0:00:50]} 56. Rxd4 {[%clk 0:00:05]}  exd4 {[%clk 0:00:50]} 57. Kxd4 {[%clk 0:00:06]}  Kf6 {[%clk 0:00:50]} 58. Ke3 {[%clk 0:00:06]}  h5 {[%clk 0:00:50]} 59. Kf3 {[%clk 0:00:06]}  Bc7 {[%clk 0:00:51]} 60. Ke4 {[%clk 0:00:06]}  g5 {[%clk 0:00:51]} 61. Kf3 {[%clk 0:00:07]}  Kf5 {[%clk 0:00:51]} 62. Kf2 {[%clk 0:00:06]}  Kf4 {[%clk 0:00:51]} 63. h4 {[%clk 0:00:06]}  g4 {[%clk 0:00:50]} 64. Kg2 {[%clk 0:00:06]}  Ke3 {[%clk 0:00:49]} 65. Kf1 {[%clk 0:00:06]}  Kf3 {[%clk 0:00:50]} 66. Kg1 {[%clk 0:00:07]}  Kg3 {[%clk 0:00:50]} 67. Kh1 {[%clk 0:00:08]}  Kxh4 {[%clk 0:00:51]} 68. Kg1 {[%clk 0:00:09]}  Kg3 {[%clk 0:00:50]} 69. Kh1 {[%clk 0:00:10]}  h4 {[%clk 0:00:51]} 70. Kg1 {[%clk 0:00:10]}  Kh3 {[%clk 0:00:51]} 71. Kh1 {[%clk 0:00:10]}  g3 {[%clk 0:00:52]} 72. Kg1 {[%clk 0:00:11]}  Bb6+ {[%clk 0:00:52]} 73. Kh1 {[%clk 0:00:11]}  g2# {[%clk 0:00:53]} 0-1


[Site "https://www.chess.com"]

[Event "Titled Tuesday Blitz December 06 Early 2022"]
[White "Tay, Junior"]
[Black "Omelja, Artem"]
[WhiteFideId "5800439"]
[BlackFideId "14119846"]
[WhiteElo "2216"]
[BlackElo "2404"]
[Result "0-1"]
[Round "03"]
[TimeControl "180+1"]
[Date "2022.12.07"]
[WhiteClock "0:00:17"]
[BlackClock "0:00:17"]

1. e4 {[%clk 0:03:00]}  c5 {[%clk 0:02:59]} 2. Nf3 {[%clk 0:03:00]}  e6 {[%clk 0:02:57]} 3. d4 {[%clk 0:03:00]}  cxd4 {[%clk 0:02:58]} 4. Bg5 {[%clk 0:03:01]}  Qa5+ {[%clk 0:02:33]} 5. c3 {[%clk 0:03:00]}  dxc3 {[%clk 0:02:24]} 6. Nxc3 {[%clk 0:02:59]}  Nc6 {[%clk 0:02:24]} 7. Bc4 {[%clk 0:02:58]}  h6 {[%clk 0:02:07]} 8. Bd2 {[%clk 0:02:57]}  Qc7 {[%clk 0:01:59]} 9. Qe2 {[%clk 0:02:43]}  a6 {[%clk 0:01:58]} 10. O-O {[%clk 0:02:37]}  Nge7 {[%clk 0:01:45]} 11. Rac1 {[%clk 0:02:35]}  Ng6 {[%clk 0:01:41]} 12. Rfe1 {[%clk 0:02:20]}  Bd6 {[%clk 0:01:33]} 13. g3 {[%clk 0:02:04]}  O-O {[%clk 0:01:31]} 14. Bb3 {[%clk 0:01:38]}  Qb8 {[%clk 0:01:21]} 15. Na4 {[%clk 0:01:35]}  b5 {[%clk 0:01:10]} 16. Nc5 {[%clk 0:01:35]}  Bxc5 {[%clk 0:01:10]} 17. Rxc5 {[%clk 0:01:35]}  Bb7 {[%clk 0:01:11]} 18. h4 {[%clk 0:01:30]}  d6 {[%clk 0:01:00]} 19. Rcc1 {[%clk 0:01:29]}  Nge5 {[%clk 0:00:59]} 20. Nxe5 {[%clk 0:01:24]}  dxe5 {[%clk 0:00:59]} 21. Qg4 {[%clk 0:01:15]}  Kh7 {[%clk 0:00:49]} 22. f4 {[%clk 0:01:09]}  Nd4 {[%clk 0:00:45]} 23. f5 {[%clk 0:00:55]}  exf5 {[%clk 0:00:42]} 24. Qh5 {[%clk 0:00:46]}  Bxe4 {[%clk 0:00:35]} 25. Bxf7 {[%clk 0:00:40]}  Rxf7 {[%clk 0:00:32]} 26. Qxf7 {[%clk 0:00:40]}  Nf3+ {[%clk 0:00:33]} 27. Kf2 {[%clk 0:00:38]}  Nxd2 {[%clk 0:00:30]} 28. Rc7 {[%clk 0:00:27]}  Qf8 {[%clk 0:00:22]} 29. Qh5 {[%clk 0:00:22]}  Rc8 {[%clk 0:00:18]} 30. Rec1 {[%clk 0:00:21]}  Nc4 {[%clk 0:00:17]} 31. Rxc8 {[%clk 0:00:20]}  Qxc8 {[%clk 0:00:18]} 32. Kg1 {[%clk 0:00:18]}  Qc5+ {[%clk 0:00:18]} 33. Kh2 {[%clk 0:00:17]}  Qf2+ {[%clk 0:00:18]} 34. Kh3 {[%clk 0:00:17]}  Qg2# {[%clk 0:00:17]} 0-1


[Site "https://www.chess.com"]

[Event "Titled Tuesday Blitz December 06 Early 2022"]
[White "Viana Da Costa, Fernando"]
[Black "Salinas Herrera, Pablo"]
[WhiteFideId "2111900"]
[BlackFideId "3407128"]
[WhiteElo "2259"]
[BlackElo "2557"]
[Result "0-1"]
[Round "03"]
[TimeControl "180+1"]
[Date "2022.12.07"]
[WhiteClock "0:00:01"]
[BlackClock "0:00:08"]

1. e4 {[%clk 0:03:00]}  c5 {[%clk 0:02:59]} 2. Nf3 {[%clk 0:03:00]}  e6 {[%clk 0:03:00]} 3. Nc3 {[%clk 0:02:59]}  a6 {[%clk 0:03:00]} 4. d4 {[%clk 0:02:59]}  cxd4 {[%clk 0:03:01]} 5. Nxd4 {[%clk 0:02:59]}  Qc7 {[%clk 0:03:02]} 6. Bd3 {[%clk 0:02:53]}  Nf6 {[%clk 0:03:01]} 7. O-O {[%clk 0:02:52]}  d6 {[%clk 0:03:01]} 8. Kh1 {[%clk 0:02:50]}  Be7 {[%clk 0:03:02]} 9. f4 {[%clk 0:02:49]}  O-O {[%clk 0:03:02]} 10. a4 {[%clk 0:02:44]}  b6 {[%clk 0:03:02]} 11. Qf3 {[%clk 0:02:41]}  Bb7 {[%clk 0:03:02]} 12. Qh3 {[%clk 0:02:41]}  Nbd7 {[%clk 0:03:00]} 13. Bd2 {[%clk 0:02:40]}  Rfe8 {[%clk 0:02:55]} 14. Rae1 {[%clk 0:02:40]}  g6 {[%clk 0:02:44]} 15. f5 {[%clk 0:02:11]}  e5 {[%clk 0:02:36]} 16. fxg6 {[%clk 0:02:01]}  hxg6 {[%clk 0:02:36]} 17. Nf3 {[%clk 0:01:57]}  d5 {[%clk 0:02:36]} 18. Ng5 {[%clk 0:01:41]}  d4 {[%clk 0:02:29]} 19. Nd5 {[%clk 0:01:39]}  Bxd5 {[%clk 0:02:29]} 20. exd5 {[%clk 0:01:38]}  Nf8 {[%clk 0:01:46]} 21. Rf3 {[%clk 0:01:12]}  Qd7 {[%clk 0:01:38]} 22. Rxe5 {[%clk 0:00:39]}  Qxh3 {[%clk 0:01:34]} 23. gxh3 {[%clk 0:00:34]}  N8d7 {[%clk 0:01:34]} 24. Re2 {[%clk 0:00:30]}  b5 {[%clk 0:00:31]} 25. axb5 {[%clk 0:00:28]}  Nxd5 {[%clk 0:00:29]} 26. Nxf7 {[%clk 0:00:20]}  Nc5 {[%clk 0:00:25]} 27. Bc4 {[%clk 0:00:15]}  Nb6 {[%clk 0:00:22]} 28. Nh6+ {[%clk 0:00:08]}  Kh8 {[%clk 0:00:22]} 29. Bf7 {[%clk 0:00:02]}  Rf8 {[%clk 0:00:09]} 30. Rxe7 {[%clk 0:00:02]}  axb5 {[%clk 0:00:10]} 31. Rg3 {[%clk 0:00:01]}  Nc8 {[%clk 0:00:08]} 32. Rd7 {[%clk 0:00:01]}  Nxd7 {[%clk 0:00:07]} 33. Bxg6 {[%clk 0:00:02]}  Ne5 {[%clk 0:00:07]} 34. Be4 {[%clk 0:00:01]}  Nd6 {[%clk 0:00:08]} 35. Ng4 {[%clk 0:00:01]}  Ra1+ {[%clk 0:00:07]} 36. Kg2 {[%clk 0:00:01]}  Nxe4 {[%clk 0:00:08]} 37. Nxe5 {[%clk 0:00:01]}  Rf2# {[%clk 0:00:08]} 0-1


[Site "https://www.chess.com"]

[Event "Titled Tuesday Blitz December 06 Early 2022"]
[White "Vidit, Santosh Gujrathi"]
[Black "Godzwon, Iwo"]
[WhiteFideId "5029465"]
[BlackFideId "21802483"]
[WhiteElo "2669"]
[BlackElo "2284"]
[Result "1/2-1/2"]
[Round "03"]
[TimeControl "180+1"]
[Date "2022.12.07"]
[WhiteClock "0:00:05"]
[BlackClock "0:00:04"]

1. e4 {[%clk 0:03:00]}  c5 {[%clk 0:02:52]} 2. Nf3 {[%clk 0:03:00]}  e6 {[%clk 0:02:51]} 3. d4 {[%clk 0:03:00]}  cxd4 {[%clk 0:02:52]} 4. Nxd4 {[%clk 0:03:01]}  Nc6 {[%clk 0:02:53]} 5. Nc3 {[%clk 0:02:59]}  Qc7 {[%clk 0:02:52]} 6. g3 {[%clk 0:02:54]}  Nf6 {[%clk 0:02:52]} 7. Ndb5 {[%clk 0:02:45]}  Qb8 {[%clk 0:02:34]} 8. Bg2 {[%clk 0:02:45]}  a6 {[%clk 0:02:33]} 9. Nd4 {[%clk 0:02:46]}  Bc5 {[%clk 0:02:21]} 10. Nxc6 {[%clk 0:02:43]}  dxc6 {[%clk 0:02:18]} 11. O-O {[%clk 0:02:39]}  O-O {[%clk 0:02:15]} 12. Bg5 {[%clk 0:01:43]}  Be7 {[%clk 0:02:14]} 13. f4 {[%clk 0:01:33]}  h6 {[%clk 0:02:08]} 14. Bxf6 {[%clk 0:01:29]}  Bxf6 {[%clk 0:02:09]} 15. e5 {[%clk 0:01:30]}  Be7 {[%clk 0:02:04]} 16. Ne4 {[%clk 0:01:23]}  b5 {[%clk 0:01:51]} 17. Qh5 {[%clk 0:01:19]}  Ra7 {[%clk 0:01:42]} 18. g4 {[%clk 0:01:12]}  Rd7 {[%clk 0:01:39]} 19. g5 {[%clk 0:00:55]}  hxg5 {[%clk 0:01:30]} 20. Nxg5 {[%clk 0:00:51]}  Bxg5 {[%clk 0:01:30]} 21. Qxg5 {[%clk 0:00:52]}  Bb7 {[%clk 0:01:19]} 22. Rf3 {[%clk 0:00:37]}  Qd8 {[%clk 0:00:58]} 23. Rf2 {[%clk 0:00:16]}  c5 {[%clk 0:00:53]} 24. Bxb7 {[%clk 0:00:14]}  Rxb7 {[%clk 0:00:54]} 25. Qg4 {[%clk 0:00:13]}  Rd7 {[%clk 0:00:44]} 26. Raf1 {[%clk 0:00:14]}  Rd2 {[%clk 0:00:37]} 27. h4 {[%clk 0:00:13]}  Qd4 {[%clk 0:00:37]} 28. c3 {[%clk 0:00:13]}  Qe3 {[%clk 0:00:37]} 29. Kg2 {[%clk 0:00:13]}  Rfd8 {[%clk 0:00:36]} 30. Qf3 {[%clk 0:00:12]}  Rxf2+ {[%clk 0:00:21]} 31. Rxf2 {[%clk 0:00:12]}  Qc1 {[%clk 0:00:22]} 32. f5 {[%clk 0:00:10]}  Qh6 {[%clk 0:00:11]} 33. Kh3 {[%clk 0:00:09]}  Rd2 {[%clk 0:00:11]} 34. Rxd2 {[%clk 0:00:07]}  Qxd2 {[%clk 0:00:12]} 35. fxe6 {[%clk 0:00:08]}  fxe6 {[%clk 0:00:12]} 36. Qa8+ {[%clk 0:00:08]}  Kh7 {[%clk 0:00:12]} 37. Qxa6 {[%clk 0:00:07]}  Qe3+ {[%clk 0:00:12]} 38. Kg2 {[%clk 0:00:06]}  Qe2+ {[%clk 0:00:12]} 39. Kg1 {[%clk 0:00:07]}  Qe1+ {[%clk 0:00:12]} 40. Kg2 {[%clk 0:00:07]}  Qe2+ {[%clk 0:00:12]} 41. Kg1 {[%clk 0:00:08]}  Qe3+ {[%clk 0:00:08]} 42. Kf1 {[%clk 0:00:07]}  Qc1+ {[%clk 0:00:08]} 43. Ke2 {[%clk 0:00:03]}  Qxb2+ {[%clk 0:00:09]} 44. Kd3 {[%clk 0:00:02]}  Qb1+ {[%clk 0:00:09]} 45. Kd2 {[%clk 0:00:02]}  Qb2+ {[%clk 0:00:08]} 46. Kd1 {[%clk 0:00:03]}  Qb1+ {[%clk 0:00:04]} 47. Kd2 {[%clk 0:00:03]}  Qb2+ {[%clk 0:00:04]} 48. Kd1 {[%clk 0:00:04]}  Qb1+ {[%clk 0:00:04]} 49. Kd2 {[%clk 0:00:05]} 1/2-1/2


[Site "https://www.chess.com"]

[Event "Titled Tuesday Blitz December 06 Early 2022"]
[White "Vlassov, Nikolai"]
[Black "Hansen, Eric"]
[WhiteFideId "4103360"]
[BlackFideId "2606771"]
[WhiteElo "2324"]
[BlackElo "2568"]
[Result "1-0"]
[Round "03"]
[TimeControl "180+1"]
[Date "2022.12.07"]
[WhiteClock "0:01:50"]
[BlackClock "0:00:02"]

1. e4 {[%clk 0:03:00]}  c5 {[%clk 0:02:59]} 2. c3 {[%clk 0:03:00]}  Nf6 {[%clk 0:02:58]} 3. e5 {[%clk 0:03:00]}  Nd5 {[%clk 0:02:59]} 4. d4 {[%clk 0:03:01]}  cxd4 {[%clk 0:02:59]} 5. cxd4 {[%clk 0:03:01]}  e6 {[%clk 0:02:57]} 6. Nc3 {[%clk 0:03:01]}  Nxc3 {[%clk 0:02:55]} 7. bxc3 {[%clk 0:03:02]}  Qc7 {[%clk 0:02:56]} 8. Bd2 {[%clk 0:03:02]}  d6 {[%clk 0:02:56]} 9. f4 {[%clk 0:03:02]}  b6 {[%clk 0:02:49]} 10. Nf3 {[%clk 0:03:02]}  Bb7 {[%clk 0:02:50]} 11. Bd3 {[%clk 0:03:01]}  Nd7 {[%clk 0:02:50]} 12. O-O {[%clk 0:03:01]}  Be7 {[%clk 0:02:51]} 13. f5 {[%clk 0:03:01]}  dxe5 {[%clk 0:02:49]} 14. fxe6 {[%clk 0:03:01]}  fxe6 {[%clk 0:02:50]} 15. Ng5 {[%clk 0:02:58]}  Bxg5 {[%clk 0:00:37]} 16. Qh5+ {[%clk 0:02:53]}  g6 {[%clk 0:00:25]} 17. Bxg6+ {[%clk 0:02:49]}  hxg6 {[%clk 0:00:14]} 18. Qxh8+ {[%clk 0:02:47]}  Ke7 {[%clk 0:00:15]} 19. Bxg5+ {[%clk 0:02:45]}  Kd6 {[%clk 0:00:16]} 20. dxe5+ {[%clk 0:02:43]}  Kc6 {[%clk 0:00:15]} 21. Qg7 {[%clk 0:02:34]}  Qxe5 {[%clk 0:00:07]} 22. Qxg6 {[%clk 0:02:22]}  Nc5 {[%clk 0:00:03]} 23. Rae1 {[%clk 0:02:09]}  Qxc3 {[%clk 0:00:02]} 24. Rxe6+ {[%clk 0:01:57]}  Nxe6 {[%clk 0:00:02]} 25. Qxe6+ {[%clk 0:01:57]}  Kb5 {[%clk 0:00:03]} 26. Rf5+ {[%clk 0:01:52]}  Ka6 {[%clk 0:00:02]} 27. Qe2+ {[%clk 0:01:50]} 1-0


[Site "https://www.chess.com"]

[Event "Titled Tuesday Blitz December 06 Early 2022"]
[White "Weetik, Vjacheslav"]
[Black "Melaugh, Shane"]
[WhiteFideId "4153472"]
[BlackFideId "2509580"]
[WhiteElo "2469"]
[BlackElo "2025"]
[Result "1-0"]
[Round "03"]
[TimeControl "180+1"]
[Date "2022.12.07"]
[WhiteClock "0:00:04"]
[BlackClock "0:00:01"]

1. d4 {[%clk 0:02:58]}  e6 {[%clk 0:02:56]} 2. Nf3 {[%clk 0:02:56]}  f5 {[%clk 0:02:53]} 3. g3 {[%clk 0:02:52]}  b6 {[%clk 0:02:53]} 4. Bg2 {[%clk 0:02:52]}  Bb7 {[%clk 0:02:54]} 5. O-O {[%clk 0:02:53]}  Nf6 {[%clk 0:02:54]} 6. c4 {[%clk 0:02:53]}  Be7 {[%clk 0:02:54]} 7. d5 {[%clk 0:02:50]}  O-O {[%clk 0:02:52]} 8. Nc3 {[%clk 0:02:49]}  Bb4 {[%clk 0:02:52]} 9. Qb3 {[%clk 0:02:33]}  Bxc3 {[%clk 0:02:51]} 10. Qxc3 {[%clk 0:02:28]}  exd5 {[%clk 0:02:50]} 11. b3 {[%clk 0:02:14]}  dxc4 {[%clk 0:02:20]} 12. bxc4 {[%clk 0:02:07]}  Ne4 {[%clk 0:02:17]} 13. Qc2 {[%clk 0:02:05]}  Na6 {[%clk 0:02:17]} 14. Bb2 {[%clk 0:02:01]}  Nac5 {[%clk 0:02:18]} 15. Rad1 {[%clk 0:01:53]}  Qe7 {[%clk 0:02:12]} 16. Nd4 {[%clk 0:01:50]}  d6 {[%clk 0:02:08]} 17. f3 {[%clk 0:01:24]}  Ng5 {[%clk 0:02:04]} 18. Nxf5 {[%clk 0:01:23]}  Qe6 {[%clk 0:01:52]} 19. e4 {[%clk 0:01:04]}  Ba6 {[%clk 0:00:44]} 20. Rc1 {[%clk 0:00:37]}  Qd7 {[%clk 0:00:20]} 21. Nxg7 {[%clk 0:00:34]}  Nge6 {[%clk 0:00:19]} 22. Nf5 {[%clk 0:00:25]}  Kf7 {[%clk 0:00:17]} 23. Qd2 {[%clk 0:00:23]}  Ke8 {[%clk 0:00:17]} 24. Bh3 {[%clk 0:00:21]}  Qa4 {[%clk 0:00:16]} 25. Qh6 {[%clk 0:00:17]}  Bxc4 {[%clk 0:00:15]} 26. Rfd1 {[%clk 0:00:12]}  Rf7 {[%clk 0:00:11]} 27. Rxd6 {[%clk 0:00:08]}  cxd6 {[%clk 0:00:08]} 28. Nxd6+ {[%clk 0:00:08]}  Ke7 {[%clk 0:00:08]} 29. Nxf7 {[%clk 0:00:06]}  Kxf7 {[%clk 0:00:09]} 30. Qxh7+ {[%clk 0:00:06]}  Ke8 {[%clk 0:00:08]} 31. Qg8+ {[%clk 0:00:05]}  Kd7 {[%clk 0:00:03]} 32. Qxa8 {[%clk 0:00:05]}  Qxa2 {[%clk 0:00:03]} 33. Rd1+ {[%clk 0:00:04]}  Ke7 {[%clk 0:00:01]} 34. Be5 {[%clk 0:00:02]}  Qe2 {[%clk 0:00:01]} 35. Bd6+ {[%clk 0:00:02]}  Kf7 {[%clk 0:00:01]} 36. Bxe6+ {[%clk 0:00:02]}  Kxe6 {[%clk 0:00:02]} 37. Qe8+ {[%clk 0:00:02]}  Kf6 {[%clk 0:00:01]} 38. Qe7+ {[%clk 0:00:02]}  Kg6 {[%clk 0:00:02]} 39. Qe8+ {[%clk 0:00:03]}  Kf6 {[%clk 0:00:02]} 40. Be5+ {[%clk 0:00:03]}  Kg5 {[%clk 0:00:01]} 41. h4+ {[%clk 0:00:03]}  Kh6 {[%clk 0:00:01]} 42. Qh8+ {[%clk 0:00:03]}  Kg6 {[%clk 0:00:01]} 43. Qg7+ {[%clk 0:00:03]}  Kh5 {[%clk 0:00:01]} 44. Qg5# {[%clk 0:00:04]} 1-0


[Site "https://www.chess.com"]

[Event "Titled Tuesday Blitz December 06 Early 2022"]
[White "Yeletsky, Ivan"]
[Black "Ismayil, Malak"]
[WhiteFideId "24180327"]
[BlackFideId "13412604"]
[WhiteElo "2391"]
[BlackElo "1880"]
[Result "1-0"]
[Round "03"]
[TimeControl "180+1"]
[Date "2022.12.07"]
[WhiteClock "0:01:07"]
[BlackClock "0:00:10"]

1. e4 {[%clk 0:02:53]}  e5 {[%clk 0:03:00]} 2. Nf3 {[%clk 0:02:52]}  Nc6 {[%clk 0:03:00]} 3. Nc3 {[%clk 0:02:52]}  Nf6 {[%clk 0:03:00]} 4. Bb5 {[%clk 0:02:52]}  d6 {[%clk 0:02:59]} 5. d4 {[%clk 0:02:18]}  exd4 {[%clk 0:03:00]} 6. Qxd4 {[%clk 0:02:19]}  Bd7 {[%clk 0:02:59]} 7. Bxc6 {[%clk 0:02:19]}  Bxc6 {[%clk 0:03:00]} 8. Bg5 {[%clk 0:02:19]}  Be7 {[%clk 0:03:00]} 9. O-O-O {[%clk 0:02:19]}  h6 {[%clk 0:03:00]} 10. Bh4 {[%clk 0:02:17]}  O-O {[%clk 0:02:35]} 11. Rhe1 {[%clk 0:02:13]}  Nd7 {[%clk 0:02:33]} 12. Bxe7 {[%clk 0:02:11]}  Qxe7 {[%clk 0:02:34]} 13. Qe3 {[%clk 0:02:04]}  a6 {[%clk 0:02:26]} 14. Nd4 {[%clk 0:02:04]}  Nc5 {[%clk 0:02:14]} 15. f3 {[%clk 0:01:59]}  Bd7 {[%clk 0:02:14]} 16. Nd5 {[%clk 0:01:58]}  Qd8 {[%clk 0:02:14]} 17. g4 {[%clk 0:01:58]}  b5 {[%clk 0:01:50]} 18. h4 {[%clk 0:01:55]}  c6 {[%clk 0:01:48]} 19. Nf4 {[%clk 0:01:54]}  Qxh4 {[%clk 0:01:15]} 20. Rh1 {[%clk 0:01:54]}  Qf6 {[%clk 0:01:16]} 21. Nh5 {[%clk 0:01:51]}  Qe7 {[%clk 0:01:01]} 22. Nf5 {[%clk 0:01:50]}  Bxf5 {[%clk 0:01:00]} 23. gxf5 {[%clk 0:01:51]}  Qg5 {[%clk 0:00:37]} 24. f4 {[%clk 0:01:47]}  Qe7 {[%clk 0:00:38]} 25. Nxg7 {[%clk 0:01:25]}  f6 {[%clk 0:00:13]} 26. Rdg1 {[%clk 0:01:13]}  Kf7 {[%clk 0:00:13]} 27. Rxh6 {[%clk 0:01:12]}  Rg8 {[%clk 0:00:13]} 28. Rh7 {[%clk 0:01:12]}  Kf8 {[%clk 0:00:13]} 29. Ne6+ {[%clk 0:01:07]}  Nxe6 {[%clk 0:00:10]} 30. Rxg8+ {[%clk 0:01:06]}  Kxg8 {[%clk 0:00:10]} 31. Rxe7 {[%clk 0:01:07]} 1-0


[Site "https://www.chess.com"]

[Event "Titled Tuesday Blitz December 06 Early 2022"]
[White "Yeremyan, Alen"]
[Black "Chigaev, Maksim"]
[WhiteFideId "13308998"]
[BlackFideId "4108116"]
[WhiteElo "2159"]
[BlackElo "2542"]
[Result "1/2-1/2"]
[Round "03"]
[TimeControl "180+1"]
[Date "2022.12.06"]
[WhiteClock "0:00:34"]
[BlackClock "0:00:07"]

1. e4 {[%clk 0:03:00]}  c5 {[%clk 0:02:59]} 2. Nc3 {[%clk 0:02:58]}  Nc6 {[%clk 0:02:58]} 3. Bb5 {[%clk 0:02:59]}  Nd4 {[%clk 0:02:57]} 4. Bc4 {[%clk 0:02:59]}  e6 {[%clk 0:02:57]} 5. Nge2 {[%clk 0:02:59]}  a6 {[%clk 0:02:52]} 6. a4 {[%clk 0:03:00]}  Nc6 {[%clk 0:02:52]} 7. O-O {[%clk 0:03:00]}  Nf6 {[%clk 0:02:52]} 8. d4 {[%clk 0:02:56]}  cxd4 {[%clk 0:02:50]} 9. Nxd4 {[%clk 0:02:56]}  Qc7 {[%clk 0:02:48]} 10. Nxc6 {[%clk 0:02:55]}  bxc6 {[%clk 0:02:44]} 11. Bd3 {[%clk 0:02:48]}  d5 {[%clk 0:02:42]} 12. Qe2 {[%clk 0:02:45]}  Be7 {[%clk 0:02:42]} 13. b3 {[%clk 0:02:39]}  O-O {[%clk 0:02:41]} 14. Bb2 {[%clk 0:02:40]}  d4 {[%clk 0:02:24]} 15. Nb1 {[%clk 0:02:37]}  e5 {[%clk 0:02:23]} 16. Nd2 {[%clk 0:02:37]}  a5 {[%clk 0:02:20]} 17. Nc4 {[%clk 0:02:37]}  Be6 {[%clk 0:02:20]} 18. Bc1 {[%clk 0:02:37]}  Nd7 {[%clk 0:02:17]} 19. f4 {[%clk 0:02:36]}  Bxc4 {[%clk 0:01:58]} 20. Bxc4 {[%clk 0:02:36]}  exf4 {[%clk 0:01:58]} 21. Bxf4 {[%clk 0:02:37]}  Bd6 {[%clk 0:01:42]} 22. Bxd6 {[%clk 0:02:18]}  Qxd6 {[%clk 0:01:43]} 23. Rf5 {[%clk 0:02:18]}  Ne5 {[%clk 0:01:15]} 24. Raf1 {[%clk 0:02:15]}  Ra7 {[%clk 0:01:00]} 25. Qd2 {[%clk 0:02:10]}  Kh8 {[%clk 0:00:43]} 26. Bd3 {[%clk 0:02:02]}  f6 {[%clk 0:00:41]} 27. h3 {[%clk 0:02:02]}  c5 {[%clk 0:00:39]} 28. Qf4 {[%clk 0:01:53]}  Raa8 {[%clk 0:00:33]} 29. Rh5 {[%clk 0:01:49]}  g6 {[%clk 0:00:30]} 30. Rh6 {[%clk 0:01:44]}  Nf7 {[%clk 0:00:21]} 31. Qxd6 {[%clk 0:01:37]}  Nxd6 {[%clk 0:00:22]} 32. Rh4 {[%clk 0:01:26]}  Kg7 {[%clk 0:00:22]} 33. Rhf4 {[%clk 0:01:24]}  Rae8 {[%clk 0:00:19]} 34. g4 {[%clk 0:01:20]}  Re5 {[%clk 0:00:19]} 35. Kg2 {[%clk 0:01:18]}  h6 {[%clk 0:00:19]} 36. Re1 {[%clk 0:01:11]}  Rfe8 {[%clk 0:00:15]} 37. Kh2 {[%clk 0:00:58]}  Rf8 {[%clk 0:00:08]} 38. Rf2 {[%clk 0:00:55]}  Nf7 {[%clk 0:00:09]} 39. Ref1 {[%clk 0:00:52]}  Ng5 {[%clk 0:00:07]} 40. Rf4 {[%clk 0:00:52]}  Ne6 {[%clk 0:00:07]} 41. R4f2 {[%clk 0:00:51]}  h5 {[%clk 0:00:08]} 42. Rg1 {[%clk 0:00:46]}  hxg4 {[%clk 0:00:08]} 43. Rxg4 {[%clk 0:00:47]}  Rh8 {[%clk 0:00:07]} 44. Rfg2 {[%clk 0:00:44]}  g5 {[%clk 0:00:07]} 45. Bc4 {[%clk 0:00:40]}  Kf8 {[%clk 0:00:07]} 46. Bxe6 {[%clk 0:00:38]}  Rxe6 {[%clk 0:00:08]} 47. Rf2 {[%clk 0:00:39]}  Ke7 {[%clk 0:00:08]} 48. Rf5 {[%clk 0:00:39]}  Rc8 {[%clk 0:00:08]} 49. Kg3 {[%clk 0:00:35]}  c4 {[%clk 0:00:09]} 50. bxc4 {[%clk 0:00:34]}  Rxc4 {[%clk 0:00:05]} 51. Rxa5 {[%clk 0:00:35]}  Rc3+ {[%clk 0:00:05]} 52. Kf2 {[%clk 0:00:33]}  Rxc2+ {[%clk 0:00:06]} 53. Ke1 {[%clk 0:00:34]}  Rc3 {[%clk 0:00:04]} 54. h4 {[%clk 0:00:32]}  Re3+ {[%clk 0:00:04]} 55. Kd2 {[%clk 0:00:33]}  R6xe4 {[%clk 0:00:04]} 56. Rxe4+ {[%clk 0:00:32]}  Rxe4 {[%clk 0:00:05]} 57. hxg5 {[%clk 0:00:33]}  fxg5 {[%clk 0:00:06]} 58. Rxg5 {[%clk 0:00:33]}  Kd6 {[%clk 0:00:06]} 59. Kd3 {[%clk 0:00:34]}  Rh4 {[%clk 0:00:07]} 60. a5 {[%clk 0:00:34]}  Kc7 {[%clk 0:00:07]} 1/2-1/2


[Site "https://www.chess.com"]